bitfinex/quotes_SOLUSD_20250815
["timestamp","ask_amount","ask_price","bid_price","bid_amount"]
[1755269812111,43.1,187.49,187.44,5.36504006]
[1755269812405,43.1,187.49,187.48,9.02271526]
[1755269813396,43.1,187.49,187.44,5.36504006]
[1755269813586,43.1,187.49,187.44,14.38775532]
[1755269813787,43.1,187.49,187.48,9.02271526]
[1755269813982,43.75,187.49,187.48,9.02271526]
[1755269814204,43.1,187.49,187.48,9.02271526]
[1755269814978,43.1,187.49,187.44,5.36504006]
[1755269815183,48.4336303,187.49,187.45,9.02271526]
[1755269815395,57.45634556,187.49,187.44,9.05271526]
[1755269815585,57.45634556,187.49,187.45,9.02271526]
[1755269815790,0.65,187.48,187.45,9.02271526]
[1755269816013,0.65,187.47,187.45,9.02271526]
[1755269816208,43.43,187.46,187.44,0.03]
[1755269816585,42.78,187.46,187.44,9.05271526]
[1755269816787,0.65,187.45,187.42,0.03]
[1755269817004,0.65,187.45,187.42,9.05271526]
[1755269817312,0.65,187.48,187.44,9.02271526]
[1755269817509,42.72,187.47,187.43,5.33526811]
[1755269818020,42.72,187.47,187.42,5.36556769]
[1755269818191,43.37,187.47,187.42,0.03]
[1755269818397,42.72,187.47,187.42,5.36547508]
[1755269818594,42.72,187.47,187.46,9.02271526]
[1755269820710,42.72,187.47,187.43,5.33526603]
[1755269820916,42.72,187.47,187.42,5.3655536]
[1755269821114,42.72,187.47,187.46,9.02271526]
[1755269821740,48.7041868,187.47,187.42,0.03]
[1755269821942,0.65,187.46,187.42,0.03]
[1755269822122,0.65,187.46,187.43,9.02271526]
[1755269822313,0.65,187.45,187.44,9.02271526]
[1755269822638,0.65,187.45,187.42,0.03]
[1755269822834,42.6,187.44,187.42,0.03]
[1755269823013,43.25,187.44,187.42,9.05271526]
[1755269823338,43.25,187.44,187.42,0.03]
[1755269823507,43.25,187.44,187.42,9.05271526]
[1755269823508,42.6,187.44,187.42,9.05271526]
[1755269823711,0.65,187.43,187.42,9.05271526]
[1755269824342,0.65,187.43,187.42,0.03]
[1755269824734,0.65,187.43,187.42,9.05271526]
[1755269824932,0.65,187.43,187.42,0.03]
[1755269825510,5.98532518,187.43,187.42,0.03]
[1755269825709,0.65,187.43,187.42,0.03]
[1755269825919,0.65,187.43,187.42,9.05271526]
[1755269826120,0.65,187.43,187.42,0.03]
[1755269826826,15.00804044,187.43,187.42,0.03]
[1755269827205,5.98532518,187.43,187.42,0.03]
[1755269827422,15.00804044,187.43,187.42,0.03]
[1755269828037,72.75425601,187.43,187.42,0.03]
[1755269828220,76.20829114,187.43,187.42,0.03]
[1755269828424,33.56829114,187.43,187.42,0.03]
[1755269828626,24.5467597,187.43,187.42,0.03]
[1755269828830,60.11425601,187.43,187.42,0.03]
[1755269829046,106.18986008,187.43,187.42,0.03]
[1755269829426,30.65,187.43,187.42,0.03]
[1755269829632,73.27,187.43,187.42,0.03]
[1755269829856,52.29271526,187.43,187.42,0.03]
[1755269830020,48.60532518,187.43,187.42,0.03]
[1755269830220,43.27,187.43,187.42,0.03]
[1755269831048,42.62,187.43,187.42,9.05271526]
[1755269831554,42.62,187.43,187.42,14.38832512]
[1755269831718,42.62,187.43,187.42,0.03]
[1755269831914,42.62,187.43,187.42,9.05271526]
[1755269832347,0.71,187.49,187.42,14.38832512]
[1755269832653,42.66,187.49,187.44,9.02271526]
[1755269832842,42.66,187.49,187.45,0.03]
[1755269833044,42.66,187.49,187.48,9.02271526]
[1755269833045,0.06,187.49,187.48,9.02271526]
[1755269833238,0.06,187.49,187.48,9.05271526]
[1755269833549,0.06,187.49,187.48,14.38661754]
[1755269833719,52.33271526,187.49,187.42,0.03]
[1755269833921,9.67271526,187.48,187.42,0.03]
[1755269834448,9.67271526,187.47,187.42,0.03]
[1755269834848,0.65,187.46,187.42,0.03]
[1755269835032,42.6,187.45,187.42,0.03]
[1755269835233,42.6,187.45,187.42,9.05271526]
[1755269835234,43.28,187.45,187.42,9.05271526]
[1755269835418,0.68,187.44,187.42,9.05271526]
[1755269835619,47.93488618,187.45,187.42,0.03]
[1755269835822,0.68,187.43,187.42,0.03]
[1755269836247,0.06,187.49,187.42,9.05271526]
[1755269836559,0.06,187.49,187.48,9.02271526]
[1755269837168,1e-08,187.49,187.48,0.03]
[1755269837358,1e-08,187.49,187.48,9.02271526]
[1755269837538,1e-08,187.49,187.48,16.49262854]
[1755269837746,1e-08,187.49,187.48,16.52262854]
[1755269839357,0.06,187.51,187.5,35.02271526]
[1755269839689,0.06,187.59,187.5,76.04543051]
[1755269839867,0.06,187.59,187.58,9.02271526]
[1755269840030,0.06,187.59,187.56,4.33526274]
[1755269840229,0.06,187.59,187.58,9.02271526]
[1755269841528,0.06,187.59,187.58,9.05271526]
[1755269841731,0.06,187.61,187.58,14.383774]
[1755269841935,0.06,187.61,187.6,9.02271526]
[1755269842574,0.06,187.66,187.6,9.02271526]
[1755269842740,0.06,187.66,187.65,18.04543052]
[1755269843132,0.06,187.68,187.65,18.04543052]
[1755269843332,0.06,187.68,187.67,9.02271526]
[1755269843556,0.06,187.68,187.67,14.35121741]
[1755269844056,0.06,187.68,187.65,26.0]
[1755269844284,0.06,187.68,187.67,9.02271526]
[1755269845257,0.74,187.68,187.66,9.02271526]
[1755269845468,0.68,187.67,187.57,15.13621557]
[1755269845670,0.68,187.67,187.66,9.02271526]
[1755269845872,6.00857481,187.67,187.6,31.33048112]
[1755269846076,0.06,187.68,187.66,9.02271526]
[1755269846259,0.06,187.7,187.69,26.0]
[1755269846579,0.06,187.7,187.69,35.05271526]
[1755269846760,0.06,187.72,187.69,35.02271526]
[1755269846962,0.06,187.72,187.71,9.02271526]
[1755269847202,0.68,187.79,187.71,9.02271526]
[1755269847387,0.68,187.82,187.78,9.02271526]
[1755269847587,0.68,187.8,187.7,18.67677676]
[1755269847759,0.74,187.83,187.77,9.02271526]
[1755269847963,0.74,187.83,187.82,9.02271526]
[1755269848480,0.74,187.83,187.77,9.02271526]
[1755269849286,0.06,187.83,187.77,26.0]
[1755269849484,0.06,187.83,187.82,9.02271526]
[1755269850194,0.74,187.83,187.78,26.0]
[1755269850381,0.74,187.83,187.82,9.02271526]
[1755269850686,0.06,187.83,187.82,9.02271526]
[1755269851768,0.06,187.85,187.83,5.32396315]
[1755269851972,0.06,187.85,187.84,9.02271526]
[1755269852587,0.06,187.9,187.84,18.04543052]
[1755269852790,0.06,187.9,187.88,9.02271526]
[1755269853482,0.06,187.9,187.86,26.0]
[1755269853691,0.68,187.89,187.84,7.45552312]
[1755269854190,0.68,187.88,187.84,2.132026]
[1755269854395,0.68,187.88,187.84,7.4556661]
[1755269854730,0.68,187.88,187.84,2.132026]
[1755269854997,0.68,187.87,187.84,2.132026]
[1755269855195,0.68,187.87,187.75,44.01]
[1755269855403,0.68,187.87,187.86,9.02271526]
[1755269855564,0.06,187.9,187.86,9.02271526]
[1755269855762,0.06,187.9,187.82,5.32424661]
[1755269855960,9.70271526,187.89,187.81,13.303348]
[1755269856166,9.02271526,187.87,187.78,5.32538076]
[1755269856480,9.02271526,187.85,187.77,0.05]
[1755269856797,15.10621557,187.83,187.8,11.143348]
[1755269856977,78.1456261,187.82,187.77,0.05]
[1755269857183,47.4456261,187.81,187.77,0.05]
[1755269857394,3.3856261,187.8,187.77,0.05]
[1755269857571,4.0656261,187.8,187.77,0.05]
[1755269857905,6.00509718,187.79,187.77,0.05]
[1755269858073,9.02271526,187.78,187.77,0.05]
[1755269858273,13.08834136,187.78,187.77,0.05]
[1755269858716,28.19455693,187.78,187.67,11.143348]
[1755269858876,28.19455693,187.78,187.66,0.72]
[1755269858877,18.49184167,187.77,187.66,0.72]
[1755269859081,9.02271526,187.73,187.68,9.02271526]
[1755269859377,0.68,187.77,187.66,14.35148504]
[1755269859574,43.96,187.78,187.69,26.72]
[1755269859769,43.96,187.78,187.77,9.02271526]
[1755269859981,30.0,187.82,187.77,9.74271526]
[1755269860182,30.0,187.82,187.8,9.02271526]
[1755269860382,30.0,187.81,187.8,9.02271526]
[1755269860814,82.32,187.83,187.8,9.02271526]
[1755269860976,82.32,187.83,187.82,9.02271526]
[1755269861181,82.28,187.83,187.8,9.02271526]
[1755269861384,82.28,187.83,187.81,9.02271526]
[1755269861611,82.28,187.83,187.77,9.74271526]
[1755269861779,15.16621557,187.9,187.78,6.04538076]
[1755269861981,9.02271526,187.85,187.74,26.0]
[1755269862181,9.02271526,187.85,187.76,9.02271526]
[1755269862182,3.38235722,187.85,187.76,9.02271526]
[1755269862380,0.68,187.84,187.75,9.02271526]
[1755269862583,0.68,187.84,187.72,5.32685522]
[1755269862584,9.02271526,187.78,187.72,9.02271526]
[1755269862775,43.9,187.77,187.71,0.72]
[1755269863001,8.99465739,187.83,187.76,8.99465739]
[1755269863208,43.96,187.83,187.82,8.99465739]
[1755269863708,43.96,187.83,187.74,26.0]
[1755269863709,47.34261794,187.83,187.79,13.56257457]
[1755269864018,47.34261794,187.83,187.71,18.64567055]
[1755269864019,4.06232698,187.82,187.71,5.32736668]
[1755269864180,13.56257457,187.79,187.74,13.56257457]
[1755269864388,131.9,187.81,187.77,13.56257457]
[1755269864694,16.94484489,187.8,187.71,6.04736668]
[1755269864899,13.56257457,187.8,187.71,6.04736668]
[1755269865209,132.58,187.81,187.75,13.56257457]
[1755269865395,132.58,187.81,187.76,13.56257457]
[1755269865396,3.38198898,187.8,187.76,13.56257457]
[1755269865908,44.0,187.79,187.74,5.32648971]
[1755269866111,44.0,187.79,187.76,13.56257457]
[1755269866504,44.0,187.79,187.74,5.97648971]
[1755269866695,44.0,187.79,187.74,0.65]
[1755269866888,44.0,187.79,187.75,13.56257457]
[1755269867092,44.0,187.79,187.76,13.56257457]
[1755269867302,44.0,187.79,187.74,0.65]
[1755269867495,43.92,187.78,187.76,13.56257457]
[1755269868097,43.92,187.78,187.77,13.56257457]
[1755269868297,4.22772071,187.84,187.77,14.21257457]
[1755269868511,3.385533,187.86,187.78,0.65]
[1755269868815,3.385533,187.88,187.85,13.56257457]
[1755269869013,47.265533,187.87,187.86,13.56257457]
[1755269869208,47.265533,187.87,187.78,5.760639]
[1755269869410,3.385533,187.86,187.85,13.56257457]
[1755269869815,47.245533,187.86,187.85,13.56257457]
[1755269870122,47.24861918,187.86,187.81,5.32453011]
[1755269870296,3.38835135,187.85,187.8,31.32476296]
[1755269870496,3.38835135,187.84,187.8,31.97476296]
[1755269870813,3.38835135,187.85,187.83,13.56257457]
[1755269871016,3.38835135,187.84,187.83,13.56257457]
[1755269871222,43.86,187.84,187.8,44.63679703]
[1755269871394,43.86,187.84,187.83,13.56257457]
[1755269871591,0.06,187.89,187.83,26.0]
[1755269871918,3.45112235,187.89,187.88,13.56257457]
[1755269872102,3.45112235,187.89,187.84,0.65]
[1755269872420,3.39112235,187.88,187.84,5.32352007]
[1755269872621,3.45320939,187.89,187.85,0.65]
[1755269872940,0.06,187.89,187.83,5.3239213]
[1755269873237,3.39387257,187.88,187.83,5.3239213]
[1755269873511,3.39387257,187.87,187.83,5.9739213]
[1755269873720,0.06,187.89,187.83,5.9739213]
[1755269873901,3.39684108,187.88,187.84,0.65]
[1755269874104,3.39684108,187.87,187.81,26.0]
[1755269874409,3.39684108,187.86,187.79,0.65]
[1755269874615,47.85684108,187.85,187.79,13.56257457]
[1755269874806,16.95941565,187.84,187.79,13.56257457]
[1755269875001,16.95941565,187.83,187.79,13.56257457]
[1755269875200,3.39684108,187.82,187.79,13.56257457]
[1755269875411,3.39684108,187.81,187.76,0.65]
[1755269875721,47.76015553,187.8,187.77,14.212574]
[1755269875900,44.36,187.8,187.77,0.65]
[1755269876100,47.74398072,187.79,187.78,13.56257457]
[1755269876407,48.56772071,187.84,187.78,0.65]
[1755269876735,3.40450065,187.83,187.78,0.65]
[1755269876892,44.34,187.84,187.77,32.20230578]
[1755269877092,3.40464041,187.83,187.79,0.65]
[1755269877299,3.40464041,187.82,187.8,0.65]
[1755269877505,3.40464041,187.81,187.77,5.32557027]
[1755269877705,3.40464041,187.8,187.77,5.32557027]
[1755269877923,48.56772071,187.84,187.77,5.32557027]
[1755269878131,7.63553866,187.83,187.8,13.56257457]
[1755269878425,3.40781795,187.82,187.78,5.9753074]
[1755269878623,3.40781795,187.81,187.76,0.65]
[1755269878803,3.40781795,187.8,187.76,0.65]
[1755269879008,49.66367993,187.84,187.75,13.317708]
[1755269879009,47.86781795,187.79,187.75,13.317708]
[1755269879323,47.86781795,187.78,187.77,0.65]
[1755269879696,47.86781795,187.78,187.77,14.21257457]
[1755269879896,47.86781795,187.78,187.76,13.56257457]
[1755269880200,3.40781795,187.77,187.75,18.64384999]
[1755269880406,44.46,187.78,187.77,26.0]
[1755269880712,3.41809968,187.78,187.77,40.21257457]
[1755269880896,3.41809968,187.78,187.77,26.65]
[1755269881111,7.64582039,187.78,187.77,13.56257457]
[1755269881444,3.41809968,187.78,187.77,26.65]
[1755269881637,0.06,187.86,187.77,69.77386914]
[1755269881820,0.06,187.86,187.85,13.56257457]
[1755269882026,49.80469994,187.86,187.83,5.32379573]
[1755269882221,3.42469994,187.85,187.83,5.32379573]
[1755269882430,0.06,187.86,187.84,13.56257457]
[1755269882630,3.42679845,187.85,187.83,5.32379573]
[1755269882950,0.06,187.86,187.83,5.32379573]
[1755269883130,3.42560543,187.85,187.83,5.32379573]
[1755269883336,0.06,187.86,187.84,13.56257457]
[1755269883510,46.46,187.86,187.83,5.32379573]
[1755269883711,46.46,187.86,187.85,13.56257457]
[1755269883911,46.46,187.86,187.83,5.97379573]
[1755269883912,46.46,187.86,187.83,5.32379573]
[1755269884117,46.46,187.86,187.81,5.32453011]
[1755269884316,3.43233155,187.85,187.84,26.0]
[1755269884539,0.06,187.88,187.84,53.12514914]
[1755269884839,0.06,187.88,187.87,13.54076624]
[1755269885026,0.06,187.88,187.87,27.08153248]
[1755269885235,0.06,187.88,187.87,0.65]
[1755269885440,0.06,187.88,187.87,14.19076624]
[1755269885835,0.06,187.88,187.84,26.65]
[1755269886140,47.02,187.88,187.87,18.86359585]
[1755269886314,47.02,187.88,187.87,14.29882786]
[1755269886511,0.06,187.88,187.8,13.96151385]
[1755269886848,47.68,187.87,187.78,5.32538076]
[1755269887032,3.81598648,187.86,187.78,5.32538076]
[1755269887248,4.53598648,187.85,187.79,13.55984106]
[1755269887441,4.53598648,187.84,187.79,13.55984106]
[1755269887623,3.81598648,187.83,187.82,13.55984106]
[1755269887819,0.72,187.87,187.82,13.55984106]
[1755269888023,5.32367972,187.84,187.8,13.55984106]
[1755269888350,51.63812858,187.83,187.76,5.32591727]
[1755269888524,3.8177481,187.82,187.76,5.32591727]
[1755269888727,17.37758916,187.82,187.72,13.589841]
[1755269888945,18.09758916,187.81,187.76,13.55984106]
[1755269889242,51.5777481,187.8,187.77,13.55984106]
[1755269889549,0.72,187.83,187.79,13.55984106]
[1755269889719,47.02,187.79,187.77,13.55984106]
[1755269889920,0.72,187.78,187.76,13.55984106]
[1755269890144,47.02,187.79,187.77,13.55984106]
[1755269890420,0.72,187.81,187.78,13.55984106]
[1755269890743,46.94,187.8,187.79,13.55984106]
[1755269891342,47.66,187.8,187.74,5.97647525]
[1755269891549,47.66,187.8,187.74,5.32647525]
[1755269891845,4.54281779,187.79,187.72,0.03]
[1755269892044,13.55984106,187.73,187.72,0.03]
[1755269892266,65.76664018,187.73,187.72,0.03]
[1755269892544,47.6,187.73,187.72,0.03]
[1755269892746,66.48664018,187.73,187.72,0.03]
[1755269893448,66.48664018,187.73,187.72,1e-08]
[1755269893449,85.41214364,187.73,187.72,1e-08]
[1755269894248,46.43358225,187.71,187.7,1e-08]
[1755269894422,46.43358225,187.71,187.68,0.03]
[1755269894423,15.10621557,187.7,187.68,0.03]
[1755269894627,32.48534452,187.69,187.68,0.03]
[1755269894931,33.20534452,187.69,187.68,0.03]
[1755269895133,29.38605663,187.69,187.68,0.03]
[1755269895455,76.10605663,187.69,187.68,0.03]
[1755269896260,81.39399098,187.69,187.68,0.03]
[1755269896557,84.82063282,187.69,187.68,0.03]
[1755269896764,71.26079176,187.69,187.68,0.03]
[1755269896925,41.10621557,187.67,187.66,0.03]
[1755269897127,44.53285741,187.67,187.66,0.03]
[1755269897326,15.10621557,187.66,187.63,0.1]
[1755269897532,54.66605663,187.64,187.63,1e-08]
[1755269897771,15.10621557,187.6,187.49,4.29324359]
[1755269898053,13.55984106,187.53,187.46,0.7]
[1755269898281,46.58,187.52,187.48,13.55984106]
[1755269898629,0.66,187.51,187.43,3.809345]
[1755269898832,0.66,187.51,187.42,0.73]
[1755269898833,13.55984106,187.5,187.42,26.73]
[1755269899160,13.55984106,187.5,187.42,0.73]
[1755269899356,15.10621557,187.5,187.42,0.73]
[1755269899561,13.55984106,187.48,187.43,13.55984106]
[1755269899726,46.54,187.47,187.43,13.55984106]
[1755269901062,13.55984106,187.47,187.42,5.3655167]
[1755269901356,5.99364006,187.49,187.42,6.0655167]
[1755269901357,0.66,187.49,187.42,6.0655167]
[1755269901563,46.4,187.48,187.42,6.0655167]
[1755269901855,46.4,187.48,187.44,13.55984106]
[1755269903430,46.38,187.47,187.45,0.7]
[1755269903846,46.38,187.47,187.46,13.55984106]
[1755269904091,0.66,187.57,187.46,14.25984106]
[1755269904277,0.66,187.57,187.52,18.89248823]
[1755269904448,46.28,187.56,187.52,5.33264717]
[1755269904648,46.26,187.55,187.54,13.55984106]
[1755269904878,46.24,187.55,187.52,6.03264717]
[1755269905083,46.24,187.55,187.54,13.55984106]
[1755269906286,46.2,187.57,187.55,5.33191149]
[1755269906469,46.14,187.57,187.56,14.25984106]
[1755269906670,46.12,187.61,187.56,14.25984106]
[1755269906887,46.12,187.61,187.6,13.55984106]
[1755269907872,46.12,187.61,187.57,0.7]
[1755269908090,46.12,187.61,187.58,0.7]
[1755269908261,46.12,187.61,187.6,18.89033146]
[1755269908598,46.12,187.61,187.6,13.55984106]
[1755269909397,59.67984106,187.61,187.56,5.36158429]
[1755269909573,46.78,187.61,187.58,13.55984106]
[1755269909786,46.12,187.61,187.58,13.55984106]
[1755269909971,0.66,187.6,187.56,0.03]
[1755269910270,15.10621557,187.62,187.57,13.55984106]
[1755269910477,131.9,187.64,187.56,0.03]
[1755269910478,131.9,187.64,187.61,13.55984106]
[1755269910665,46.08,187.63,187.58,0.7]
[1755269910863,13.55984106,187.59,187.56,0.03]
[1755269911076,15.10621557,187.62,187.56,0.03]
[1755269911077,59.61984106,187.58,187.56,0.03]
[1755269911281,59.59984106,187.57,187.56,0.03]
[1755269911588,60.25984106,187.57,187.56,0.03]
[1755269912392,65.59118402,187.57,187.56,0.03]
[1755269912686,80.69739959,187.57,187.56,0.03]
[1755269913076,67.13755853,187.57,187.56,0.03]
[1755269913386,74.70605663,187.57,187.56,0.03]
[1755269913975,61.14621557,187.57,187.56,0.03]
[1755269914176,59.59984106,187.57,187.56,0.03]
[1755269914874,80.69739959,187.57,187.56,0.03]
[1755269915262,15.10621557,187.56,187.54,0.03]
[1755269915464,13.55984106,187.55,187.54,0.03]
[1755269915677,0.66,187.56,187.54,0.03]
[1755269915884,13.55984106,187.55,187.54,0.03]
[1755269916085,0.66,187.56,187.54,0.03]
[1755269916262,13.55984106,187.58,187.54,0.03]
[1755269916462,45.76,187.57,187.55,13.55984106]
[1755269916787,45.76,187.57,187.54,14.28984106]
[1755269916985,45.76,187.57,187.54,13.58984106]
[1755269917382,45.76,187.57,187.56,13.55984106]
[1755269917685,45.76,187.57,187.56,14.25984106]
[1755269917894,45.76,187.57,187.55,13.55984106]
[1755269918269,45.76,187.57,187.56,13.55984106]
[1755269918789,45.76,187.57,187.54,0.73]
[1755269918990,5.33077494,187.59,187.55,13.55984106]
[1755269919197,45.66,187.58,187.56,13.55984106]
[1755269919366,45.6,187.57,187.56,13.55984106]
[1755269919562,45.6,187.57,187.56,0.7]
[1755269919887,45.6,187.57,187.56,14.25984106]
[1755269920372,45.6,187.57,187.56,19.59146827]
[1755269920771,45.6,187.57,187.55,13.55984106]
[1755269920997,45.6,187.57,187.54,13.58984106]
[1755269921300,0.66,187.56,187.54,13.58984106]
[1755269921477,14.21984106,187.56,187.54,0.03]
[1755269921794,13.55984106,187.55,187.54,0.03]
[1755269922098,45.6,187.57,187.54,0.03]
[1755269922306,5.9904442,187.61,187.55,13.55984106]
[1755269922498,45.48,187.6,187.56,13.55984106]
[1755269922799,45.48,187.6,187.55,13.55984106]
[1755269923008,45.48,187.6,187.58,13.55984106]
[1755269923173,45.48,187.6,187.59,13.55984106]
[1755269923371,5.32881461,187.66,187.59,14.25984106]
[1755269923580,5.32881461,187.66,187.59,13.55984106]
[1755269923581,45.42,187.63,187.59,13.55984106]
[1755269923790,46.08,187.63,187.59,13.55984106]
[1755269923989,46.08,187.63,187.58,13.55984106]
[1755269924191,45.42,187.63,187.59,13.55984106]
[1755269924696,50.74967336,187.63,187.59,13.55984106]
[1755269925605,45.42,187.63,187.57,5.33127085]
[1755269925973,45.42,187.63,187.59,13.55984106]
[1755269926175,45.42,187.63,187.59,14.23984106]
[1755269926403,45.42,187.63,187.61,13.55984106]
[1755269926692,45.42,187.63,187.59,13.55984106]
[1755269926892,45.42,187.63,187.57,5.33127085]
[1755269927202,45.42,187.63,187.59,13.55984106]
[1755269927588,45.42,187.63,187.6,13.55984106]
[1755269927779,45.42,187.63,187.57,5.33127085]
[1755269928094,50.74967413,187.63,187.59,13.55984106]
[1755269928277,45.42,187.63,187.59,13.55984106]
[1755269928594,14.26984106,187.62,187.57,13.55984106]
[1755269928792,0.71,187.61,187.57,13.59351086]
[1755269928977,45.1,187.6,187.57,9.00924197]
[1755269929577,45.1,187.6,187.54,5.36212804]
[1755269929578,0.71,187.59,187.54,0.03]
[1755269929823,0.71,187.58,187.54,0.03]
[1755269930000,54.10924197,187.57,187.54,0.03]
[1755269930199,65.87872301,187.66,187.54,0.03]
[1755269930200,131.9,187.65,187.55,0.68]
[1755269930419,131.9,187.65,187.64,9.00924197]
[1755269930420,15.10621557,187.65,187.64,9.00924197]
[1755269930574,30.0,187.65,187.64,9.68924197]
[1755269930977,30.0,187.65,187.64,6.00935408]
[1755269931182,0.06,187.67,187.64,6.00935408]
[1755269931392,0.06,187.67,187.66,9.00924197]
[1755269932000,30.21397635,187.67,187.62,9.00924197]
[1755269932312,15.87621557,187.67,187.63,9.00924197]
[1755269932619,15.10621557,187.65,187.59,0.68]
[1755269932780,55.34783381,187.64,187.55,6.01191149]
[1755269932985,46.34,187.64,187.63,9.00783381]
[1755269933199,46.32,187.66,187.63,13.58224217]
[1755269933395,46.32,187.66,187.65,13.58224217]
[1755269934118,46.32,187.66,187.65,14.26224217]
[1755269934312,46.32,187.66,187.65,0.68]
[1755269934483,46.32,187.66,187.65,13.58224217]
[1755269934683,46.32,187.66,187.65,18.91131224]
[1755269934883,0.06,187.67,187.65,19.59131224]
[1755269935079,0.06,187.67,187.65,6.00907007]
[1755269935406,0.06,187.67,187.66,14.26224217]
[1755269935712,0.06,187.67,187.66,13.58224217]
[1755269936008,0.06,187.67,187.66,14.26224217]
[1755269936610,0.06,187.67,187.66,19.59102827]
[1755269936793,0.06,187.67,187.66,33.17327044]
[1755269938293,0.06,187.69,187.68,26.0]
[1755269938493,0.06,187.71,187.69,26.0]
[1755269938719,0.06,187.71,187.7,18.90989267]
[1755269939013,0.06,187.71,187.7,19.58989267]
[1755269939995,0.06,187.71,187.7,14.26224217]
[1755269940204,0.06,187.71,187.7,19.58989267]
[1755269941735,0.06,187.71,187.7,6.0076505]
[1755269942026,0.77,187.71,187.64,0.68]
[1755269942212,0.77,187.71,187.68,13.58224217]
[1755269942414,0.71,187.7,187.67,13.58224217]
[1755269942732,0.06,187.71,187.7,5.3276505]
[1755269943045,0.06,187.71,187.7,18.90989267]
[1755269943212,0.06,187.71,187.7,13.58224217]
[1755269943403,0.06,187.71,187.64,14.262243]
[1755269943404,0.77,187.71,187.64,14.262243]
[1755269943604,0.77,187.71,187.68,13.58224217]
[1755269943917,0.77,187.71,187.69,13.58224217]
[1755269944094,14.35224217,187.71,187.66,13.58224217]
[1755269944304,0.71,187.7,187.69,13.58224217]
[1755269944500,0.71,187.7,187.63,6.00959711]
[1755269944695,0.71,187.7,187.68,13.58224217]
[1755269944901,0.71,187.69,187.64,5.32924306]
[1755269945127,0.71,187.69,187.68,13.58224217]
[1755269945397,0.71,187.69,187.67,13.58224217]
[1755269945713,0.71,187.68,187.65,13.58224217]
[1755269945911,0.71,187.68,187.66,13.58224217]
[1755269946222,0.71,187.68,187.62,5.32964988]
[1755269946427,0.71,187.68,187.66,13.58224217]
[1755269946609,45.84,187.69,187.67,13.58224217]
[1755269946809,45.84,187.69,187.68,13.58224217]
[1755269947001,45.84,187.69,187.68,13.61224217]
[1755269947713,0.06,187.71,187.68,14.29224217]
[1755269948019,0.06,187.71,187.7,13.58224217]
[1755269949136,0.06,187.71,187.69,5.32766963]
[1755269949442,0.06,187.71,187.7,13.58224217]
[1755269949640,0.06,187.71,187.7,14.26224217]
[1755269950828,0.06,187.71,187.7,19.58989267]
[1755269953629,1e-08,187.71,187.7,19.58989267]
[1755269953861,0.06,187.73,187.72,26.0]
[1755269954059,0.06,187.73,187.72,39.58224217]
[1755269954262,0.06,187.73,187.72,40.26224217]
[1755269954431,0.06,187.73,187.72,39.58224217]
[1755269954765,0.06,187.73,187.72,13.5702604]
[1755269954922,0.06,187.73,187.72,18.89734328]
[1755269955564,0.06,187.73,187.72,13.5702604]
[1755269956651,0.06,187.73,187.72,8.99231012]
[1755269956861,0.06,187.73,187.68,2.163618]
[1755269956862,0.76,187.73,187.68,2.163618]
[1755269957059,0.7,187.72,187.71,8.99231012]
[1755269957257,0.7,187.72,187.7,8.99231012]
[1755269957473,9.69231012,187.71,187.68,0.03]
[1755269957628,8.99231012,187.7,187.68,0.03]
[1755269957830,8.99231012,187.69,187.68,0.03]
[1755269958144,24.79852569,187.69,187.68,0.03]
[1755269958454,15.80621557,187.69,187.68,0.03]